lending/lending_fUSD_20240509
["ID","MTS","AMOUNT","RATE_DAILY","PERIOD"]
[326694897,1715257837351,-500.0,0.000277,2]
[326694898,1715257837361,-500.0,0.000277,2]
[326694899,1715257837371,-500.0,0.000277,2]
[326694900,1715257837380,-500.0,0.000277,2]
[326694901,1715257837389,-500.0,0.000277,2]
[326694902,1715257837398,-500.0,0.000277,2]
[326694903,1715257837407,-500.0,0.000277,2]
[326694904,1715257837416,-500.0,0.000277,2]
[326694905,1715257837426,-500.0,0.000277,2]
[326694906,1715257837435,-500.0,0.000277,2]
[326694907,1715257837445,-500.0,0.000277,2]
[326694908,1715257837454,-500.0,0.000277,2]
[326694909,1715257837464,-500.0,0.000277,2]
[326694910,1715257837473,-500.0,0.000277,2]
[326694911,1715257837483,-500.0,0.000277,2]
[326694912,1715257837493,-500.0,0.000277,2]
[326694913,1715257837503,-500.0,0.000277,2]
[326694914,1715257837513,-500.0,0.000277,2]
[326694915,1715257837523,-500.0,0.000277,2]
[326694916,1715257837532,-500.0,0.000277,2]
[326694917,1715257837542,-500.0,0.000277,2]
[326694918,1715257837554,-500.0,0.000277,2]
[326694919,1715257837564,-500.0,0.000277,2]
[326694920,1715257837573,-500.0,0.000277,2]
[326694921,1715257837583,-500.0,0.000277,2]
[326694922,1715257837593,-500.0,0.000277,2]
[326694923,1715257837602,-500.0,0.000277,2]
[326694924,1715257837612,-500.0,0.000277,2]
[326694925,1715257837622,-500.0,0.000277,2]
[326694926,1715257837631,-500.0,0.000277,2]
[326694927,1715257837641,-923.64244,0.000277,2]
[326694928,1715257837650,-500.0,0.000277,2]
[326694929,1715257837660,-500.0,0.000277,2]
[326694930,1715257837669,-500.0,0.000277,2]
[326694931,1715257837679,-500.0,0.000277,2]
[326694932,1715257837688,-500.0,0.000277,2]
[326694933,1715257837699,-500.0,0.000277,2]
[326694934,1715257837708,-500.0,0.000277,2]
[326694935,1715257837718,-500.0,0.000277,2]
[326694936,1715257837728,-500.0,0.000277,2]
[326694937,1715257837738,-500.0,0.000277,2]
[326694938,1715257837748,-500.0,0.000277,2]
[326694939,1715257837757,-500.0,0.000277,2]
[326694940,1715257837767,-500.0,0.000277,2]
[326694941,1715257837777,-500.0,0.000277,2]
[326694942,1715257837786,-500.0,0.000277,2]
[326694943,1715257837796,-500.0,0.000277,2]
[326694944,1715257837806,-500.0,0.000277,2]
[326694945,1715257837816,-500.0,0.000277,2]
[326694946,1715257837826,-500.0,0.000277,2]
[326694947,1715257837835,-500.0,0.000277,2]
[326694948,1715257837845,-500.0,0.000277,2]
[326694949,1715257837855,-500.0,0.000277,2]
[326694950,1715257837864,-500.0,0.000277,2]
[326694951,1715257837876,-500.0,0.000277,2]
[326694952,1715257837885,-500.0,0.000277,2]
[326694953,1715257837894,-500.0,0.000277,2]
[326694954,1715257837904,-500.0,0.000277,2]
[326694955,1715257837913,-500.0,0.000277,2]
[326694956,1715257837923,-500.0,0.000277,2]
[326694957,1715257837932,-500.0,0.000277,2]
[326694958,1715257837941,-500.0,0.000277,2]
[326694959,1715257837951,-500.0,0.000277,2]
[326694960,1715257837960,-500.0,0.000277,2]
[326694961,1715257837970,-500.0,0.000277,2]
[326694962,1715257837980,-500.0,0.000277,2]
[326694963,1715257837989,-500.0,0.000277,2]
[326694964,1715257837998,-500.0,0.000277,2]
[326694965,1715257838008,-500.0,0.000277,2]
[326694966,1715257838017,-500.0,0.000277,2]
[326694967,1715257838027,-500.0,0.000277,2]
[326694968,1715257838037,-500.0,0.000277,2]
[326694969,1715257838047,-500.0,0.000277,2]
[326694970,1715257838057,-202.06,0.000277,2]
[326694971,1715257838067,-500.0,0.000277,2]
[326694972,1715257838076,-500.0,0.000277,2]
[326694973,1715257838086,-500.0,0.000277,2]
[326694974,1715257838096,-500.0,0.000277,2]
[326694975,1715257838106,-500.0,0.000277,2]
[326694976,1715257838116,-500.0,0.000277,2]
[326694977,1715257838126,-500.0,0.000277,2]
[326694978,1715257838136,-500.0,0.000277,2]
[326694979,1715257838145,-500.0,0.000277,2]
[326694980,1715257838155,-500.0,0.000277,2]
[326694981,1715257838164,-500.0,0.000277,2]
[326694982,1715257838173,-500.0,0.000277,2]
[326694983,1715257838183,-500.0,0.000277,2]
[326694984,1715257838192,-500.0,0.000277,2]
[326694985,1715257838201,-500.0,0.000277,2]
[326694986,1715257838211,-500.0,0.000277,2]
[326694987,1715257838220,-500.0,0.000277,2]
[326694988,1715257838230,-500.0,0.000277,2]
[326694989,1715257838239,-500.0,0.000277,2]
[326694990,1715257838250,-500.0,0.000277,2]
[326694991,1715257838260,-500.0,0.000277,2]
[326694992,1715257838271,-500.0,0.000277,2]
[326694993,1715257838282,-500.0,0.000277,2]
[326694994,1715257838292,-500.0,0.000277,2]
[326694995,1715257838303,-500.0,0.000277,2]
[326694996,1715257838313,-500.0,0.000277,2]
[326694997,1715257838323,-500.0,0.000277,2]
[326694998,1715257838332,-500.0,0.000277,2]
[326694999,1715257838342,-500.0,0.000277,2]
[326695000,1715257838352,-500.0,0.000277,2]
[326695001,1715257838362,-500.0,0.000277,2]
[326695002,1715257838371,-500.0,0.000277,2]
[326695003,1715257838382,-500.0,0.000277,2]
[326695004,1715257838391,-500.0,0.000277,2]
[326695005,1715257838400,-500.0,0.000277,2]
[326695006,1715257838410,-500.0,0.000277,2]
[326695007,1715257838421,-500.0,0.000277,2]
[326695008,1715257838430,-500.0,0.000277,2]
[326695009,1715257838439,-500.0,0.000277,2]
[326695010,1715257838449,-500.0,0.000277,2]
[326695011,1715257838458,-500.0,0.000277,2]
[326695012,1715257838467,-500.0,0.000277,2]
[326695013,1715257838477,-500.0,0.000277,2]
[326695014,1715257838487,-500.0,0.000277,2]
[326695015,1715257838496,-500.0,0.000277,2]
[326695016,1715257838506,-500.0,0.000277,2]
[326695017,1715257838515,-500.0,0.000277,2]
[326695018,1715257838525,-500.0,0.000277,2]
[326695019,1715257838535,-500.0,0.000277,2]
[326695020,1715257838544,-500.0,0.000277,2]
[326695021,1715257838556,-500.0,0.000277,2]
[326695022,1715257838564,-500.0,0.000277,2]
[326695023,1715257838573,-500.0,0.000277,2]
[326695024,1715257838582,-500.0,0.000277,2]
[326695025,1715257838591,-500.0,0.000277,2]
[326695026,1715257838600,-500.0,0.000277,2]
[326695027,1715257838610,-500.0,0.000277,2]
[326695028,1715257838620,-500.0,0.000277,2]
[326695029,1715257838630,-500.0,0.000277,2]
[326695030,1715257838639,-500.0,0.000277,2]
[326695031,1715257838649,-500.0,0.000277,2]
[326695032,1715257838659,-500.0,0.000277,2]
[326695033,1715257838668,-500.0,0.000277,2]
[326695034,1715257838678,-500.0,0.000277,2]
[326695035,1715257838687,-500.0,0.000277,2]
[326695036,1715257838697,-500.0,0.000277,2]
[326695037,1715257838707,-500.0,0.000277,2]
[326695038,1715257838716,-500.0,0.000277,2]
[326695039,1715257838725,-500.0,0.000277,2]
[326695040,1715257838734,-500.0,0.000277,2]
[326695041,1715257838744,-500.0,0.000277,2]
[326695042,1715257838753,-500.0,0.000277,2]
[326695043,1715257838764,-500.0,0.000277,2]
[326695044,1715257838774,-500.0,0.000277,2]
[326695045,1715257838783,-500.0,0.000277,2]
[326695046,1715257838793,-500.0,0.000277,2]
[326695047,1715257838804,-500.0,0.000277,2]
[326695048,1715257838814,-500.0,0.000277,2]
[326695049,1715257838824,-500.0,0.000277,2]
[326695050,1715257838833,-500.0,0.000277,2]
[326695051,1715257838843,-500.0,0.000277,2]
[326695052,1715257838852,-500.0,0.000277,2]
[326695053,1715257838862,-500.0,0.000277,2]
[326695054,1715257838874,-500.0,0.000277,2]
[326695055,1715257838883,-500.0,0.000277,2]
[326695056,1715257838893,-500.0,0.000277,2]
[326695057,1715257838902,-500.0,0.000277,2]
[326695060,1715257838911,-500.0,0.000277,2]
[326695063,1715257838920,-500.0,0.000277,2]
[326695066,1715257838930,-500.0,0.000277,2]
[326695068,1715257838939,-500.0,0.000277,2]
[326695071,1715257838949,-500.0,0.000277,2]
[326695074,1715257838959,-500.0,0.000277,2]
[326695075,1715257838968,-500.0,0.000277,2]
[326695077,1715257838977,-500.0,0.000277,2]
[326695079,1715257838986,-500.0,0.000277,2]
[326695081,1715257838996,-500.0,0.000277,2]
[326695083,1715257839006,-500.0,0.000277,2]
[326695085,1715257839015,-500.0,0.000277,2]
[326695087,1715257839026,-500.0,0.000277,2]
[326695089,1715257839036,-500.0,0.000277,2]
[326695091,1715257839046,-500.0,0.000277,2]
[326695092,1715257839058,-500.0,0.000277,2]
[326695093,1715257839068,-500.0,0.000277,2]
[326695095,1715257839078,-500.0,0.000277,2]
[326695097,1715257839088,-500.0,0.000277,2]
[326695099,1715257839098,-500.0,0.000277,2]
[326695101,1715257839109,-500.0,0.000277,2]
[326695103,1715257839119,-500.0,0.000277,2]
[326695105,1715257839129,-500.0,0.000277,2]
[326695107,1715257839139,-500.0,0.000277,2]
[326695109,1715257839148,-500.0,0.000277,2]
[326695111,1715257839158,-500.0,0.000277,2]
[326695113,1715257839168,-500.0,0.000277,2]
[326695115,1715257839178,-500.0,0.000277,2]
[326695117,1715257839188,-500.0,0.000277,2]
[326695119,1715257839197,-500.0,0.000277,2]
[326695121,1715257839204,-500.0,0.000277,2]
[326695123,1715257839212,-500.0,0.000277,2]
[326695125,1715257839220,-500.0,0.000277,2]
[326695126,1715257839228,-500.0,0.000277,2]
[326695128,1715257839235,-500.0,0.000277,2]
[326695130,1715257839242,-500.0,0.000277,2]
[326695131,1715257839250,-500.0,0.000277,2]
[326695133,1715257839260,-150.0,0.000277,5]
[326695135,1715257839268,-487.1576,0.000277,2]
[326695137,1715257839282,-2105.346,0.00027703,2]
[326695155,1715257839467,-3387.3235508,0.00027706,2]
[326695158,1715257839479,-338.5667399,0.00027725,2]
[326695160,1715257839491,-190.67,0.00027744,120]
[326695162,1715257839502,-5000.0,0.00027756,2]
[326695164,1715257839513,-5000.0,0.00027756,2]
[326695166,1715257839523,-5000.0,0.00027756,2]
[326695168,1715257839536,-154.13008893,0.00027789,2]
[326695170,1715257839548,-183.05,0.00027818,120]
[326695172,1715257839559,-159.12147065,0.00027869,2]
[326695173,1715257839569,-1066.0,0.000279,11]
[326695174,1715257839579,-150.26362435,0.00027901,2]
[326695175,1715257839589,-32341.0,0.00027915,2]
[326695176,1715257839600,-204.51941913,0.0002794,2]
[326695178,1715257839611,-1000.0,0.00028,5]
[326695180,1715257839622,-341.53062545,0.00028,30]
[326695182,1715257839633,-336.34366022,0.00028,30]
[326695185,1715257839644,-500.0,0.00028,120]
[326695187,1715257839654,-19537.15584642,0.00028,3]
[326695189,1715257839666,-3857.79426472,0.00028,10]
[326695190,1715257839676,-1300.0,0.00028,3]
[326695192,1715257839687,-900.0,0.00028,29]
[326695194,1715257839698,-156.00333326,0.00028043,2]
[326695196,1715257839708,-1567.35,0.00028082,2]
[326695198,1715257839718,-414.85,0.00028082,2]
[326695200,1715257839728,-912.31,0.00028082,2]
[326695202,1715257839738,-414.85,0.00028082,2]
[326695204,1715257839749,-414.85,0.00028082,2]
[326695206,1715257839760,-809.4,0.00028082,2]
[326695208,1715257839770,-1938.60419099,0.000281,15]
[326695210,1715257839782,-428.0,0.00028114,120]
[326695212,1715257839792,-150.0,0.00028118,2]
[326695214,1715257839803,-6074.63337819,0.00028122,2]
[326695216,1715257839813,-8978.62257048,0.00028122,2]
[326695218,1715257839824,-157.66517038,0.0002816,2]
[326695220,1715257839835,-151.050911,0.00028198,24]
[326695222,1715257839846,-1381.46,0.00028221,2]
[326695224,1715257839856,-922.72,0.00028266,2]
[326695226,1715257839868,-1000.0,0.000283,2]
[326695228,1715257839880,-300.9,0.00028356,2]
[326695230,1715257839891,-151.84,0.00028356,2]
[326695231,1715257839901,-523.22,0.00028356,2]
[326695233,1715257839912,-150.0,0.00028356,2]
[326695235,1715257839923,-351.25,0.00028356,2]
[326695238,1715257839934,-300.0,0.00028356,2]
[326695239,1715257839945,-150.0,0.00028356,2]
[326695240,1715257839956,-256.68,0.00028356,2]
[326695241,1715257839968,-420.08,0.00028356,2]
[326695242,1715257839978,-523.22,0.00028356,2]
[326695243,1715257839988,-300.0,0.00028356,2]
[326695244,1715257839998,-351.25,0.00028356,2]
[326695245,1715257840007,-150.0,0.00028356,2]
[326695246,1715257840018,-150.0,0.00028356,2]
[326695247,1715257840027,-150.0,0.00028356,2]
[326695248,1715257840037,-163.21,0.00028356,2]
[326695249,1715257840047,-150.0,0.00028356,2]
[326695250,1715257840059,-523.22,0.00028356,2]
[326695251,1715257840069,-163.21,0.00028356,2]
[326695252,1715257840080,-351.25,0.00028356,2]
[326695253,1715257840090,-420.08,0.00028356,2]
[326695254,1715257840101,-150.0,0.00028356,2]
[326695255,1715257840112,-163.21,0.00028356,2]
[326695256,1715257840122,-150.0,0.00028356,2]
[326695257,1715257840132,-350.81,0.00028356,2]
[326695258,1715257840143,-420.08,0.00028356,2]
[326695259,1715257840153,-523.22,0.00028356,2]
[326695260,1715257840163,-150.0,0.00028356,2]
[326695261,1715257840172,-523.22,0.00028356,2]
[326695262,1715257840182,-420.08,0.00028356,2]
[326695263,1715257840192,-163.21,0.00028356,2]
[326695264,1715257840201,-351.14,0.00028356,2]
[326695265,1715257840211,-150.0,0.00028356,2]
[326695266,1715257840221,-420.08,0.00028356,2]
[326695267,1715257840231,-287.11,0.00028356,2]
[326695268,1715257840240,-150.0,0.00028356,2]
[326695269,1715257840250,-163.21,0.00028356,2]
[326695270,1715257840260,-305.86,0.00028356,2]
[326695271,1715257840273,-523.05,0.00028356,2]
[326695272,1715257840283,-163.21,0.00028356,2]
[326695273,1715257840292,-163.21,0.00028356,2]
[326695274,1715257840304,-163.21,0.00028356,2]
[326695275,1715257840313,-161.44,0.00028356,2]
[326695276,1715257840323,-167.85063929,0.00028391,2]
[326695277,1715257840333,-150.26362435,0.00028413,2]
[326695278,1715257840342,-198.3847333,0.00028491,2]
[326695279,1715257840354,-155.04379397,0.00028491,2]
[326695280,1715257840363,-160.47556122,0.00028491,2]
[326695281,1715257840373,-151.050911,0.00028498,24]
[326695282,1715257840382,-2754.04903348,0.00028635,2]
[326695283,1715257840392,-428.0,0.00028645,120]
[326695284,1715257840401,-500.0,0.00028671,2]
[326695285,1715257840411,-500.0,0.00028679,2]
[326695286,1715257840422,-500.0,0.00028688,2]
[326695287,1715257840432,-500.0,0.00028697,2]
[326695288,1715257840442,-500.0,0.00028706,2]
[326695289,1715257840452,-1724.9281599,0.00028712,30]
[326695290,1715257840462,-500.0,0.00028714,2]
[326695291,1715257840472,-500.0,0.00028714,2]
[326695292,1715257840481,-500.0,0.00028715,2]
[326695293,1715257840491,-500.0,0.00028723,2]
[326695294,1715257840501,-500.0,0.00028731,2]
[326695295,1715257840511,-500.0,0.00028732,2]
[326695296,1715257840520,-500.0,0.0002874,2]
[326695297,1715257840530,-500.0,0.00028741,2]
[326695298,1715257840540,-500.0,0.00028747,2]
[326695299,1715257840550,-500.0,0.00028749,2]
[326695300,1715257840560,-500.0,0.0002875,2]
[326695301,1715257840570,-2727.01821454,0.0002875,2]
[326695302,1715257840580,-366.23015908,0.0002875,2]
[326695303,1715257840590,-1880.86334509,0.0002875,2]
[326695304,1715257840599,-500.0,0.00028759,2]
[326695305,1715257840609,-500.0,0.00028759,2]
[326695306,1715257840619,-500.0,0.00028768,2]
[326695307,1715257840629,-154.050911,0.00028798,26]
[326695308,1715257840639,-156.00715865,0.00028798,2]
[326695309,1715257840648,-202.06,0.000288,2]
[326695310,1715257840658,-150.26362435,0.00028826,2]
[326695311,1715257840667,-191.87343552,0.00028839,2]
[326695312,1715257840677,-150.0,0.00028839,2]
[326695313,1715257840687,-70579.92041121,0.0002884,4]
[326695314,1715257840697,-501.82786808,0.00028889,30]
[326695315,1715257840706,-403.48,0.000289,2]
[326695316,1715257840716,-1713.0,0.000289,2]
[326695317,1715257840725,-306.26,0.00028904,2]
[326695318,1715257840734,-150.0,0.00028904,2]
[326695319,1715257840744,-150.0,0.00028904,2]
[326695320,1715257840754,-150.0,0.00028904,2]
[326695321,1715257840764,-150.0,0.00028904,2]
[326695322,1715257840773,-150.0,0.00028904,2]
[326695323,1715257840783,-19609.38018864,0.00028998,2]
[326695324,1715257840792,-500.0,0.00028999,2]
[326695325,1715257840804,-500.0,0.00028999,2]
[326695326,1715257840814,-500.0,0.00028999,2]
[326695327,1715257840823,-500.0,0.00028999,2]
[326695328,1715257840833,-500.0,0.00028999,2]
[326695329,1715257840843,-500.0,0.00028999,2]
[326695330,1715257840853,-500.0,0.00028999,2]
[326695331,1715257840863,-500.0,0.00028999,2]
[326695332,1715257840873,-567.1618974,0.00028999,2]
[326695333,1715257840883,-599.58584512,0.00028999,2]
[326695334,1715257840894,-500.0,0.00028999,2]
[326695335,1715257840904,-500.0,0.00028999,2]
[326695336,1715257840914,-500.0,0.00028999,2]
[326695337,1715257840923,-500.0,0.00028999,2]
[326695338,1715257840933,-500.0,0.00028999,2]
[326695339,1715257840943,-500.0,0.00028999,2]
[326695340,1715257840953,-500.0,0.00028999,2]
[326695341,1715257840962,-222.85534662,0.00028999,2]
[326695342,1715257840973,-5861.95711301,0.00029,2]
[326695343,1715257840983,-1000.0,0.00029,5]
[326695344,1715257840993,-500.0,0.00029,120]
[326695345,1715257841002,-6000.0,0.00029,3]
[326695346,1715257841012,-3005.4144509,0.00029,30]
[326695347,1715257841021,-900.0,0.00029,30]
[326695348,1715257841031,-156.00333326,0.00029004,2]
[326695349,1715257841041,-6074.63337819,0.00029011,2]
[326695350,1715257841052,-8978.62257048,0.00029011,2]
[326695351,1715257841062,-167.85063929,0.00029092,2]
[326695352,1715257841073,-300.0,0.000291,5]
[326695353,1715257841082,-428.0,0.00029175,120]
[326695354,1715257841092,-3077.0200038,0.00029176,10]
[326695355,1715257841102,-572.77425807,0.00029177,7]
[326695356,1715257841111,-152.06,0.00029178,2]
[326695360,1715257841121,-420.08,0.00029178,2]
[326695363,1715257841131,-523.22,0.00029178,2]
[326695365,1715257841140,-150.0,0.00029178,2]
[326695367,1715257841150,-351.25,0.00029178,2]
[326695368,1715257841159,-326.32,0.00029178,2]
[326695370,1715257841168,-150.0,0.00029178,2]
[326695372,1715257841177,-420.08,0.00029178,2]
[326695374,1715257841187,-351.25,0.00029178,2]
[326695376,1715257841196,-150.0,0.00029178,2]
[326695378,1715257841205,-150.0,0.00029178,2]
[326695380,1715257841215,-523.22,0.00029178,2]
[326695382,1715257841224,-420.08,0.00029178,2]
[326695383,1715257841234,-150.0,0.00029178,2]
[326695384,1715257841243,-523.22,0.00029178,2]
[326695386,1715257841252,-150.0,0.00029178,2]
[326695388,1715257841262,-351.25,0.00029178,2]
[326695390,1715257841275,-157.050911,0.00029198,26]
[326695392,1715257841285,-152.0,0.00029239,3]
[326695394,1715257841294,-157.66517038,0.00029472,2]
[326695396,1715257841305,-19567.5220065,0.00029479,2]
[326695397,1715257841315,-685.23241035,0.00029479,2]
[326695399,1715257841325,-3549.85101046,0.0002948,2]
[326695401,1715257841334,-157.050911,0.00029498,28]
[326695403,1715257841345,-175.98966915,0.00029511,30]
[326695405,1715257841354,-173.04884385,0.00029511,30]
[326695407,1715257841364,-206.0,0.00029511,120]
[326695409,1715257841374,-151.50350069,0.00029511,30]
[326695411,1715257841384,-3000.0,0.00029511,2]
[326695413,1715257841394,-50535.89054745,0.00029511,20]
[326695415,1715257841403,-1498.74348245,0.00029511,2]
[326695417,1715257841412,-438.6342,0.00029511,30]
[326695419,1715257841422,-1105.36574702,0.00029511,120]
[326695421,1715257841432,-1000.0,0.00029511,120]
[326695423,1715257841442,-781.91615108,0.00029511,2]
[326695425,1715257841452,-50000.0,0.00029511,20]
[326695427,1715257841461,-50000.0,0.00029511,21]
[326695429,1715257841471,-50000.0,0.00029511,22]
[326695431,1715257841480,-50000.0,0.00029511,23]
[326695433,1715257841490,-50000.0,0.00029511,24]
[326695435,1715257841499,-1023.49810476,0.00029511,120]
[326695437,1715257841508,-150.0,0.0002956,2]
[326695439,1715257841518,-2100.0,0.000296,10]
[326695441,1715257841527,-150.26362435,0.00029611,2]
[326695443,1715257841536,-265.1949358,0.000297,2]
[326695445,1715257841546,-400.0,0.000297,10]
[326695446,1715257841555,-403.48,0.000297,2]
[326695447,1715257841565,-428.0,0.00029706,120]
[326695448,1715257841574,-305.24,0.00029751,2]
[326695449,1715257841584,-150.26362435,0.0002977,2]
[326695450,1715257841593,-159.22,0.00029794,120]
[326695451,1715257841602,-1152.88,0.000298,8]
[326695452,1715257841613,-1267.88,0.000298,13]
[326695454,1715257841625,-400.0,0.000298,10]
[326695456,1715257841636,-150.26362435,0.00029833,2]
[326695457,1715257841647,-2754.04903348,0.00029875,2]
[326695459,1715257841658,-153.18397227,0.000299,7]
[326695461,1715257841670,-153.18397227,0.000299,7]
[326695463,1715257841680,-153.18397227,0.000299,7]
[326695465,1715257841691,-153.18397227,0.000299,7]
[326695467,1715257841702,-153.18397227,0.000299,7]
[326695469,1715257841712,-153.18397227,0.000299,7]
[326695471,1715257841722,-153.18397227,0.000299,7]
[326695473,1715257841732,-153.18397227,0.000299,7]
[326695475,1715257841742,-153.18397227,0.000299,7]
[326695477,1715257841752,-153.18397227,0.000299,7]
[326695479,1715257841761,-153.18397227,0.000299,7]
[326695481,1715257841771,-153.18397227,0.000299,7]
[326695483,1715257841781,-153.18397227,0.000299,7]
[326695485,1715257841793,-153.18397227,0.000299,7]
[326695487,1715257841805,-153.18397227,0.000299,7]
[326695489,1715257841815,-153.68,0.000299,7]
[326695491,1715257841826,-400.0,0.000299,10]
[326695493,1715257841836,-175.15976065,0.000299,2]
[326695495,1715257841846,-1645.17744538,0.000299,7]
[326695497,1715257841856,-1645.17744538,0.000299,7]
[326695499,1715257841867,-1645.17744538,0.000299,7]
[326695501,1715257841877,-1645.17744538,0.000299,7]
[326695503,1715257841888,-1645.17744538,0.000299,7]
[326695505,1715257841898,-1645.17744538,0.000299,7]
[326695507,1715257841907,-1645.17744538,0.000299,7]
[326695509,1715257841917,-1645.17744538,0.000299,7]
[326695511,1715257841927,-1645.17744538,0.000299,7]
[326695513,1715257841936,-1645.17744538,0.000299,7]
[326695515,1715257841946,-1645.17744538,0.000299,7]
[326695517,1715257841955,-1645.17744538,0.000299,7]
[326695519,1715257841965,-1645.17744538,0.000299,7]
[326695521,1715257841975,-6074.63337819,0.000299,2]
[326695523,1715257841984,-1645.17744538,0.000299,7]
[326695525,1715257841994,-1645.17744538,0.000299,7]
[326695527,1715257842004,-1645.17744538,0.000299,7]
[326695529,1715257842013,-1645.17744538,0.000299,7]
[326695530,1715257842023,-1645.17744538,0.000299,7]
[326695532,1715257842033,-1645.17744538,0.000299,7]
[326695534,1715257842043,-1645.67,0.000299,7]
[326695537,1715257842055,-508.5164072,0.000299,7]
[326695538,1715257842065,-508.5164072,0.000299,7]
[326695540,1715257842075,-508.5164072,0.000299,7]
[326695543,1715257842084,-508.5164072,0.000299,7]
[326695544,1715257842094,-508.5164072,0.000299,7]
[326695547,1715257842105,-508.5164072,0.000299,7]
[326695549,1715257842114,-508.5164072,0.000299,7]
[326695551,1715257842124,-508.5164072,0.000299,7]
[326695553,1715257842134,-508.5164072,0.000299,7]
[326695555,1715257842143,-508.5164072,0.000299,7]
[326695557,1715257842152,-508.5164072,0.000299,7]
[326695559,1715257842163,-508.5164072,0.000299,7]
[326695561,1715257842172,-508.5164072,0.000299,7]
[326695563,1715257842182,-508.5164072,0.000299,7]
[326695565,1715257842192,-508.5164072,0.000299,7]
[326695566,1715257842202,-508.5164072,0.000299,7]
[326695567,1715257842211,-508.5164072,0.000299,7]
[326695568,1715257842221,-508.5164072,0.000299,7]
[326695569,1715257842230,-508.5164072,0.000299,7]
[326695570,1715257842240,-509.01,0.000299,7]
[326695571,1715257842250,-2727.01821454,0.000299,2]
[326695572,1715257842260,-626.80923112,0.000299,7]
[326695573,1715257842274,-626.80923112,0.000299,7]
[326695574,1715257842284,-626.80923112,0.000299,7]
[326695575,1715257842293,-626.80923112,0.000299,7]
[326695576,1715257842305,-626.80923112,0.000299,7]
[326695577,1715257842315,-626.80923112,0.000299,7]
[326695578,1715257842325,-626.80923112,0.000299,7]
[326695579,1715257842334,-366.23015908,0.000299,2]
[326695580,1715257842345,-626.80923112,0.000299,7]
[326695581,1715257842355,-626.80923112,0.000299,7]
[326695582,1715257842365,-626.80923112,0.000299,7]
[326695583,1715257842374,-626.80923112,0.000299,7]
[326695584,1715257842385,-626.80923112,0.000299,7]
[326695585,1715257842394,-626.80923112,0.000299,7]
[326695586,1715257842404,-626.80923112,0.000299,7]
[326695587,1715257842413,-626.80923112,0.000299,7]
[326695588,1715257842423,-626.80923112,0.000299,7]
[326695589,1715257842433,-626.80923112,0.000299,7]
[326695590,1715257842443,-626.80923112,0.000299,7]
[326695591,1715257842453,-626.80923112,0.000299,7]
[326695592,1715257842463,-627.3,0.000299,7]
[326695593,1715257842472,-1880.86334509,0.000299,2]